[Event "Early-Titled-Tuesday-Blitz-January-16-2024"]
[Site "Chess.com"]
[Date "2024.01.16"]
[Round "6"]
[White "slorovel"]
[Black "elpatodice"]
[Result "1-0"]
[WhiteElo "2573"]
[BlackElo "2401"]
[TimeControl "180+1"]
[EndTime "9:11:45 PST"]
[Termination "slorovel won by resignation"]

1. e4 {[%clk 0:03:00.9]} 1... c5 {[%clk 0:02:59.2]} 2. Nf3 {[%clk 0:03:00.8]}
2... Nc6 {[%clk 0:02:58.5]} 3. Bb5 {[%clk 0:03:00.4]} 3... d6 {[%clk 0:02:58.7]}
4. O-O {[%clk 0:02:59.7]} 4... Bd7 {[%clk 0:02:58.9]} 5. Re1 {[%clk 0:03:00]}
5... Nf6 {[%clk 0:02:56.5]} 6. c3 {[%clk 0:03:00.2]} 6... a6 {[%clk 0:02:56.9]}
7. Bf1 {[%clk 0:02:59.7]} 7... Bg4 {[%clk 0:02:57]} 8. d4 {[%clk 0:03:00]} 8...
cxd4 {[%clk 0:02:51.1]} 9. cxd4 {[%clk 0:03:00.9]} 9... Bxf3 {[%clk 0:02:50.4]}
10. gxf3 {[%clk 0:03:01.8]} 10... d5 {[%clk 0:02:50.5]} 11. e5 {[%clk
0:03:01.8]} 11... Nd7 {[%clk 0:02:46.3]} 12. Nc3 {[%clk 0:03:01.9]} 12... e6
{[%clk 0:02:46.3]} 13. f4 {[%clk 0:02:59.5]} 13... Qh4 {[%clk 0:02:34.7]} 14.
Be3 {[%clk 0:02:58.9]} 14... Be7 {[%clk 0:02:30.1]} 15. f5 {[%clk 0:02:53.2]}
15... O-O {[%clk 0:02:12.9]} 16. Bg2 {[%clk 0:02:52.2]} 16... Bg5 {[%clk
0:02:04.9]} 17. Qd2 {[%clk 0:02:43.8]} 17... Bxe3 {[%clk 0:01:58.8]} 18. fxe3
{[%clk 0:02:44.7]} 18... Rad8 {[%clk 0:01:53.6]} 19. Rf1 {[%clk 0:02:43.6]}
19... Nb6 {[%clk 0:01:53.2]} 20. b3 {[%clk 0:02:42.3]} 20... Nd7 {[%clk
0:01:53.1]} 21. Rf4 {[%clk 0:02:40.5]} 21... Qh6 {[%clk 0:01:51.3]} 22. Raf1
{[%clk 0:02:37.4]} 22... Rc8 {[%clk 0:01:51.6]} 23. Ne2 {[%clk 0:02:32.2]} 23...
Ne7 {[%clk 0:01:28.9]} 24. Ng3 {[%clk 0:02:31.6]} 24... exf5 {[%clk 0:01:24.3]}
25. Nxf5 {[%clk 0:02:31.3]} 25... Nxf5 {[%clk 0:01:22.9]} 26. Rxf5 {[%clk
0:02:32.2]} 26... Qe6 {[%clk 0:01:16.9]} 27. Qf2 {[%clk 0:02:16.6]} 27... f6
{[%clk 0:01:16.1]} 28. Bh3 {[%clk 0:02:12.4]} 28... g6 {[%clk 0:00:57.7]} 29.
Rf3 {[%clk 0:02:04.2]} 29... f5 {[%clk 0:00:58.1]} 30. Qg2 {[%clk 0:01:57]}
30... Kh8 {[%clk 0:00:53.7]} 31. R3f2 {[%clk 0:01:54.7]} 31... Rc3 {[%clk
0:00:53.2]} 32. Qg5 {[%clk 0:01:40]} 32... Nxe5 {[%clk 0:00:34.2]} 33. dxe5
{[%clk 0:01:37]} 33... Qxe5 {[%clk 0:00:34.9]} 34. Bg2 {[%clk 0:01:27.8]} 34...
Rxe3 {[%clk 0:00:32.9]} 35. Bxd5 {[%clk 0:01:24.7]} 35... Re1 {[%clk 0:00:13.5]}
36. Bxb7 {[%clk 0:01:17.3]} 36... a5 {[%clk 0:00:11]} 37. Bg2 {[%clk 0:01:15.9]}
37... Re3 {[%clk 0:00:10.5]} 38. Qf4 {[%clk 0:01:14.8]} 38... Qxf4 {[%clk
0:00:09.9]} 39. Rxf4 {[%clk 0:01:15.7]} 39... Rd8 {[%clk 0:00:10.5]} 40. R4f2
{[%clk 0:01:14.6]} 40... Rd4 {[%clk 0:00:10.3]} 41. Rc2 {[%clk 0:01:13.9]} 41...
Kg7 {[%clk 0:00:10.6]} 42. Kh1 {[%clk 0:01:13.9]} 42... Kh6 {[%clk 0:00:11]} 43.
h3 {[%clk 0:01:14.1]} 43... Rh4 {[%clk 0:00:10.8]} 44. Kh2 {[%clk 0:01:14.3]}
44... a4 {[%clk 0:00:10.3]} 45. Rf3 {[%clk 0:01:12.2]} 45... Re1 {[%clk
0:00:09.2]} 46. bxa4 {[%clk 0:01:09.9]} 46... Rxa4 {[%clk 0:00:09.7]} 47. Rg3
{[%clk 0:01:06.1]} 47... Ra1 {[%clk 0:00:09.8]} 48. Bd5 {[%clk 0:01:03.8]} 48...
Rd4 {[%clk 0:00:10.3]} 49. Bf3 {[%clk 0:00:57.3]} 49... Ra4 {[%clk 0:00:10.2]}
50. Rgg2 {[%clk 0:00:56.7]} 50... Rf4 {[%clk 0:00:10.4]} 51. Rgf2 {[%clk
0:00:54.8]} 51... Rd4 {[%clk 0:00:09]} 52. Bc6 {[%clk 0:00:52.3]} 52... Rdd1
{[%clk 0:00:08.7]} 53. a4 {[%clk 0:00:52.3]} 53... Rd6 {[%clk 0:00:03]} 54. Bb5
{[%clk 0:00:46.1]} 54... Ra3 {[%clk 0:00:02.5]} 55. Ra2 {[%clk 0:00:44.5]} 55...
Re3 {[%clk 0:00:02.2]} 56. a5 {[%clk 0:00:44.6]} 56... Rd5 {[%clk 0:00:02.8]}
57. Bf1 {[%clk 0:00:43.8]} 57... Rd7 {[%clk 0:00:01.3]} 58. a6 {[%clk
0:00:43.8]} 58... Ra7 {[%clk 0:00:02]} 59. Bg2 {[%clk 0:00:44.1]} 59... Ree7
{[%clk 0:00:02.6]} 60. Bb7 {[%clk 0:00:43.2]} 60... Kg7 {[%clk 0:00:03.3]} 61.
Rfb2 {[%clk 0:00:42.5]} 61... Kf6 {[%clk 0:00:03.8]} 62. Bc6 {[%clk 0:00:41]}
62... g5 {[%clk 0:00:04]} 63. Rb7 {[%clk 0:00:40.8]} 63... f4 {[%clk 0:00:04.4]}
64. Rxa7 {[%clk 0:00:40.6]} 64... Rxa7 {[%clk 0:00:05.2]} 65. Bb7 {[%clk
0:00:40.8]} 65... Ke5 {[%clk 0:00:05.7]} 66. Kg2 {[%clk 0:00:41.2]} 66... h5
{[%clk 0:00:05]} 67. Kf3 {[%clk 0:00:41.2]} 67... Kf5 {[%clk 0:00:05.6]} 68.
Ra5+ {[%clk 0:00:41.1]} 68... Kf6 {[%clk 0:00:06]} 69. h4 {[%clk 0:00:41.6]}
69... gxh4 {[%clk 0:00:05.5]} 70. Rxh5 {[%clk 0:00:40.6]} 70... Ke7 {[%clk
0:00:06.3]} 71. Rxh4 {[%clk 0:00:40.7]} 71... Kd6 {[%clk 0:00:07.2]} 72. Kxf4
{[%clk 0:00:41]} 72... Kc7 {[%clk 0:00:08.1]} 73. Rh7+ {[%clk 0:00:40.8]} 73...
Kb6 {[%clk 0:00:08.8]} 74. Ke5 {[%clk 0:00:41]} 74... Ka5 {[%clk 0:00:08.8]} 75.
Kd5 {[%clk 0:00:40.2]} 75... Kb6 {[%clk 0:00:09.5]} 76. Kd6 {[%clk 0:00:40.7]}
76... Ka5 {[%clk 0:00:09.7]} 77. Kc5 {[%clk 0:00:40.9]} 77... Ka4 {[%clk
0:00:09.6]} 78. Rh1 {[%clk 0:00:40]} 78... Kb3 {[%clk 0:00:09.3]} 79. Rh4 {[%clk
0:00:39.3]} 1-0

[Event "Early-Titled-Tuesday-Blitz-January-16-2024"]
[Site "Chess.com"]
[Date "2024.01.16"]
[Round "6"]
[White "AlexandraSamaganova"]
[Black "DAVIDHDZSTS"]
[Result "0-1"]
[WhiteElo "2295"]
[BlackElo "1998"]
[TimeControl "180+1"]
[EndTime "9:11:46 PST"]
[Termination "DAVIDHDZSTS won by checkmate"]

1. c4 {[%clk 0:03:00.9]} 1... e6 {[%clk 0:02:57.9]} 2. Nc3 {[%clk 0:02:59.6]}
2... Nf6 {[%clk 0:02:52.6]} 3. e4 {[%clk 0:02:58.6]} 3... d5 {[%clk 0:02:48.3]}
4. e5 {[%clk 0:02:54.9]} 4... Nfd7 {[%clk 0:02:43.7]} 5. Nf3 {[%clk 0:02:51.5]}
5... d4 {[%clk 0:02:28.9]} 6. Nxd4 {[%clk 0:02:40.4]} 6... Nxe5 {[%clk
0:02:19.8]} 7. Nf3 {[%clk 0:02:16.7]} 7... Nxf3+ {[%clk 0:02:15.7]} 8. Qxf3
{[%clk 0:02:16]} 8... Nc6 {[%clk 0:02:11.3]} 9. d3 {[%clk 0:02:05.1]} 9... g6
{[%clk 0:02:10]} 10. Be3 {[%clk 0:01:56]} 10... Nd4 {[%clk 0:02:03.6]} 11. Qd1
{[%clk 0:01:54.4]} 11... Bg7 {[%clk 0:01:58]} 12. Rb1 {[%clk 0:01:40.2]} 12...
O-O {[%clk 0:01:52.2]} 13. Be2 {[%clk 0:01:18.8]} 13... Bd7 {[%clk 0:01:47.8]}
14. O-O {[%clk 0:01:15.6]} 14... c5 {[%clk 0:01:43.4]} 15. Ne4 {[%clk
0:01:04.4]} 15... b6 {[%clk 0:01:39.5]} 16. Qd2 {[%clk 0:00:48.8]} 16... Bc6
{[%clk 0:01:11.2]} 17. Ng3 {[%clk 0:00:21.4]} 17... e5 {[%clk 0:01:04.4]} 18.
Bd1 {[%clk 0:00:15.4]} 18... f5 {[%clk 0:01:00.5]} 19. Bg5 {[%clk 0:00:14.3]}
19... Qd7 {[%clk 0:00:47.1]} 20. f4 {[%clk 0:00:06.5]} 20... h6 {[%clk
0:00:37.8]} 21. Bh4 {[%clk 0:00:05.4]} 21... e4 {[%clk 0:00:32.2]} 22. dxe4
{[%clk 0:00:04.8]} 22... Nf3+ {[%clk 0:00:27.1]} 23. Bxf3 {[%clk 0:00:05]} 23...
Qxd2 {[%clk 0:00:26.1]} 24. exf5 {[%clk 0:00:04.6]} 24... Bxf3 {[%clk
0:00:21.4]} 25. Rxf3 {[%clk 0:00:05.5]} 25... gxf5 {[%clk 0:00:20.3]} 26. Rbf1
{[%clk 0:00:04.8]} 26... Bd4+ {[%clk 0:00:19.5]} 27. Kh1 {[%clk 0:00:04.7]}
27... Qxb2 {[%clk 0:00:18.5]} 28. Nh5 {[%clk 0:00:04.9]} 28... Qxa2 {[%clk
0:00:17]} 29. Rg3+ {[%clk 0:00:05]} 29... Kh8 {[%clk 0:00:16.3]} 30. Be7 {[%clk
0:00:03.2]} 30... Rg8 {[%clk 0:00:15]} 31. Bd6 {[%clk 0:00:02.3]} 31... Qxc4
{[%clk 0:00:13.6]} 32. Be5+ {[%clk 0:00:01.9]} 32... Bxe5 {[%clk 0:00:13.6]} 33.
Re1 {[%clk 0:00:01.7]} 33... Bxf4 {[%clk 0:00:10.8]} 34. Rf3 {[%clk 0:00:01.5]}
34... Bg5 {[%clk 0:00:05.7]} 35. Ref1 {[%clk 0:00:01.6]} 35... f4 {[%clk
0:00:05.6]} 36. h4 {[%clk 0:00:01.1]} 36... Qxf1+ {[%clk 0:00:05]} 37. Rxf1
{[%clk 0:00:01.1]} 37... a5 {[%clk 0:00:05.5]} 38. hxg5 {[%clk 0:00:01.2]} 38...
hxg5 {[%clk 0:00:06.2]} 39. Nf6 {[%clk 0:00:01.7]} 39... Rg6 {[%clk 0:00:06.2]}
40. Kg1 {[%clk 0:00:02.2]} 40... a4 {[%clk 0:00:06.5]} 41. Kf2 {[%clk
0:00:03.1]} 41... a3 {[%clk 0:00:07]} 42. Rh1+ {[%clk 0:00:03.1]} 42... Kg7
{[%clk 0:00:06.3]} 43. Ng4 {[%clk 0:00:03.6]} 43... a2 {[%clk 0:00:06.2]} 44.
Ne5 {[%clk 0:00:04.3]} 44... Rh6 {[%clk 0:00:05.8]} 45. Rd1 {[%clk 0:00:03.9]}
45... a1=Q {[%clk 0:00:04.7]} 46. Rd7+ {[%clk 0:00:04.8]} 46... Kf6 {[%clk
0:00:04.5]} 47. Ng4+ {[%clk 0:00:05.7]} 47... Ke6 {[%clk 0:00:04]} 48. Rd2
{[%clk 0:00:05.8]} 48... Rh4 {[%clk 0:00:02.7]} 49. Re2+ {[%clk 0:00:04.2]}
49... Kf5 {[%clk 0:00:02.2]} 50. Ne5 {[%clk 0:00:03]} 50... Ra2 {[%clk
0:00:03.1]} 51. Nd7 {[%clk 0:00:01.8]} 51... Rxe2+ {[%clk 0:00:03.2]} 52. Kxe2
{[%clk 0:00:02.7]} 52... Qb2+ {[%clk 0:00:03.7]} 53. Kd3 {[%clk 0:00:03.1]}
53... c4+ {[%clk 0:00:04.6]} 54. Kxc4 {[%clk 0:00:03.1]} 54... Ke6 {[%clk
0:00:04.4]} 55. Nf8+ {[%clk 0:00:02.9]} 55... Kf7 {[%clk 0:00:03.9]} 56. Nd7
{[%clk 0:00:03.1]} 56... f3+ {[%clk 0:00:04.6]} 57. Kd5 {[%clk 0:00:03.4]} 57...
Rd4+ {[%clk 0:00:04.8]} 58. Kc6 {[%clk 0:00:03.2]} 58... Rxd7 {[%clk 0:00:05.6]}
59. Kxd7 {[%clk 0:00:03.4]} 59... b5 {[%clk 0:00:06.5]} 60. Kc7 {[%clk
0:00:04.3]} 60... b4 {[%clk 0:00:07.4]} 61. gxf3 {[%clk 0:00:04.8]} 61... b3
{[%clk 0:00:08.3]} 62. f4 {[%clk 0:00:05.7]} 62... Qc3+ {[%clk 0:00:09.2]} 63.
Kb7 {[%clk 0:00:05.6]} 63... b2 {[%clk 0:00:10.1]} 64. fxg5 {[%clk 0:00:06.4]}
64... b1=Q+ {[%clk 0:00:11]} 65. Ka7 {[%clk 0:00:06.8]} 65... Qca1# {[%clk
0:00:11.6]} 0-1

[Event "Early-Titled-Tuesday-Blitz-January-16-2024"]
[Site "Chess.com"]
[Date "2024.01.16"]
[Round "6"]
[White "Aygehovit1992"]
[Black "1mbl4"]
[Result "1/2-1/2"]
[WhiteElo "2716"]
[BlackElo "2587"]
[TimeControl "180+1"]
[EndTime "9:11:48 PST"]
[Termination "Game drawn - insufficient material"]

1. e4 {[%clk 0:02:48.9]} 1... e6 {[%clk 0:02:50.4]} 2. d4 {[%clk 0:02:48.7]}
2... d5 {[%clk 0:02:49.4]} 3. Nc3 {[%clk 0:02:49.1]} 3... dxe4 {[%clk
0:02:45.3]} 4. Nxe4 {[%clk 0:02:48.7]} 4... Bd7 {[%clk 0:02:45.8]} 5. Nf3 {[%clk
0:02:48.2]} 5... Bc6 {[%clk 0:02:43.1]} 6. Bd3 {[%clk 0:02:48.8]} 6... Nd7
{[%clk 0:02:41.6]} 7. O-O {[%clk 0:02:48.9]} 7... Ngf6 {[%clk 0:02:41.3]} 8. Ng3
{[%clk 0:02:48.9]} 8... g6 {[%clk 0:02:40.7]} 9. b3 {[%clk 0:02:47.3]} 9... Bg7
{[%clk 0:02:39.4]} 10. Ba3 {[%clk 0:02:46.5]} 10... Bf8 {[%clk 0:02:37.7]} 11.
Bxf8 {[%clk 0:02:45.5]} 11... Kxf8 {[%clk 0:02:38.6]} 12. h4 {[%clk 0:02:38.4]}
12... h6 {[%clk 0:02:26.9]} 13. Re1 {[%clk 0:02:34.4]} 13... Kg7 {[%clk
0:02:25.4]} 14. Ne5 {[%clk 0:02:27.3]} 14... Nxe5 {[%clk 0:02:16.2]} 15. dxe5
{[%clk 0:02:28.2]} 15... Nd7 {[%clk 0:02:09.7]} 16. h5 {[%clk 0:02:27.5]} 16...
g5 {[%clk 0:02:05.5]} 17. Qg4 {[%clk 0:02:16.7]} 17... Nc5 {[%clk 0:01:56]} 18.
Rad1 {[%clk 0:02:14.6]} 18... Nxd3 {[%clk 0:01:44.3]} 19. cxd3 {[%clk
0:02:11.7]} 19... Qd5 {[%clk 0:01:40.1]} 20. f3 {[%clk 0:02:11.1]} 20... Rad8
{[%clk 0:01:35.9]} 21. d4 {[%clk 0:02:10.6]} 21... Qa5 {[%clk 0:01:26.2]} 22.
Re2 {[%clk 0:01:58.8]} 22... Rhf8 {[%clk 0:01:10.6]} 23. f4 {[%clk 0:01:55.9]}
23... f5 {[%clk 0:01:08.1]} 24. exf6+ {[%clk 0:01:55.3]} 24... Rxf6 {[%clk
0:01:07.7]} 25. fxg5 {[%clk 0:01:23.3]} 25... Qxg5 {[%clk 0:01:04.1]} 26. Qxg5+
{[%clk 0:01:23.6]} 26... hxg5 {[%clk 0:01:05]} 27. Re5 {[%clk 0:01:24.1]} 27...
Kh6 {[%clk 0:01:02.3]} 28. Rde1 {[%clk 0:01:23.1]} 28... Bd5 {[%clk 0:01:02]}
29. R1e2 {[%clk 0:01:19.2]} 29... Rdf8 {[%clk 0:00:59.3]} 30. R5e3 {[%clk
0:00:50.8]} 30... Rf4 {[%clk 0:00:56.2]} 31. Rd2 {[%clk 0:00:36.5]} 31... a5
{[%clk 0:00:54.3]} 32. a3 {[%clk 0:00:36.3]} 32... c6 {[%clk 0:00:50.6]} 33. b4
{[%clk 0:00:36.6]} 33... axb4 {[%clk 0:00:45]} 34. axb4 {[%clk 0:00:37.5]} 34...
Ra8 {[%clk 0:00:43.9]} 35. Rde2 {[%clk 0:00:20.2]} 35... Ra1+ {[%clk 0:00:37.5]}
36. Re1 {[%clk 0:00:20.4]} 36... Rxe1+ {[%clk 0:00:36.7]} 37. Rxe1 {[%clk
0:00:21.3]} 37... Rxd4 {[%clk 0:00:37]} 38. Rf1 {[%clk 0:00:05.1]} 38... Rd2
{[%clk 0:00:35.9]} 39. Rf6+ {[%clk 0:00:04.3]} 39... Kg7 {[%clk 0:00:36]} 40.
Rg6+ {[%clk 0:00:04.8]} 40... Kh7 {[%clk 0:00:29.2]} 41. Rxg5 {[%clk 0:00:05.7]}
41... Rxg2+ {[%clk 0:00:28.1]} 42. Kf1 {[%clk 0:00:06.4]} 42... b6 {[%clk
0:00:19.1]} 43. b5 {[%clk 0:00:03.5]} 43... cxb5 {[%clk 0:00:16.8]} 44. Rxd5
{[%clk 0:00:03.5]} 44... exd5 {[%clk 0:00:11.2]} 45. Kxg2 {[%clk 0:00:03.1]}
45... b4 {[%clk 0:00:10.1]} 46. Ne2 {[%clk 0:00:02.5]} 46... b3 {[%clk 0:00:04]}
47. Nc3 {[%clk 0:00:03]} 47... d4 {[%clk 0:00:02.9]} 48. Nb1 {[%clk 0:00:03.6]}
48... b5 {[%clk 0:00:02.5]} 49. Kf3 {[%clk 0:00:04.5]} 49... b4 {[%clk
0:00:03.4]} 50. Ke4 {[%clk 0:00:04.8]} 50... Kh6 {[%clk 0:00:04.3]} 51. Kd3
{[%clk 0:00:05]} 51... Kxh5 {[%clk 0:00:05.1]} 52. Kxd4 {[%clk 0:00:05.3]} 52...
b2 {[%clk 0:00:06]} 53. Kc4 {[%clk 0:00:05.6]} 53... Kg5 {[%clk 0:00:06.8]} 54.
Kb3 {[%clk 0:00:06.4]} 54... Kg6 {[%clk 0:00:07]} 55. Kxb2 {[%clk 0:00:07.3]}
55... Kg5 {[%clk 0:00:07.9]} 56. Kb3 {[%clk 0:00:07.8]} 56... Kh5 {[%clk
0:00:08.8]} 57. Kc4 {[%clk 0:00:08.7]} 57... Kh6 {[%clk 0:00:09.7]} 58. Kb3
{[%clk 0:00:09.6]} 58... Kg6 {[%clk 0:00:10.5]} 59. Kc4 {[%clk 0:00:10.5]} 59...
Kg5 {[%clk 0:00:11.4]} 60. Kb3 {[%clk 0:00:11.4]} 60... Kh5 {[%clk 0:00:12.3]}
61. Kc4 {[%clk 0:00:11.5]} 61... Kh6 {[%clk 0:00:13.2]} 62. Kxb4 {[%clk
0:00:11.9]} 1/2-1/2

[Event "Early-Titled-Tuesday-Blitz-January-16-2024"]
[Site "Chess.com"]
[Date "2024.01.16"]
[Round "6"]
[White "chucksterf10"]
[Black "crazy_m_attack"]
[Result "1/2-1/2"]
[WhiteElo "2658"]
[BlackElo "2469"]
[TimeControl "180+1"]
[EndTime "9:11:48 PST"]
[Termination "Game drawn by repetition"]

1. c4 {[%clk 0:03:00.9]} 1... e6 {[%clk 0:03:00]} 2. g3 {[%clk 0:03:01.1]} 2...
d5 {[%clk 0:02:59.8]} 3. Bg2 {[%clk 0:03:01.7]} 3... Nf6 {[%clk 0:03:00.2]} 4.
Nf3 {[%clk 0:03:02.2]} 4... Be7 {[%clk 0:03:00.2]} 5. O-O {[%clk 0:03:02.8]}
5... O-O {[%clk 0:03:00.4]} 6. b3 {[%clk 0:03:03.4]} 6... d4 {[%clk 0:03:01]} 7.
e3 {[%clk 0:03:03]} 7... c5 {[%clk 0:03:01.2]} 8. exd4 {[%clk 0:03:03.4]} 8...
cxd4 {[%clk 0:03:02.1]} 9. d3 {[%clk 0:03:03]} 9... Nc6 {[%clk 0:03:02.5]} 10.
a3 {[%clk 0:03:03.4]} 10... a5 {[%clk 0:03:02.2]} 11. Re1 {[%clk 0:03:03.9]}
11... Nd7 {[%clk 0:02:59.9]} 12. Nbd2 {[%clk 0:02:58.6]} 12... e5 {[%clk
0:02:59.2]} 13. Bb2 {[%clk 0:02:55.1]} 13... Nc5 {[%clk 0:02:55.8]} 14. Ne4
{[%clk 0:02:23.7]} 14... Nxe4 {[%clk 0:02:43.9]} 15. Rxe4 {[%clk 0:02:24.6]}
15... f5 {[%clk 0:02:43.9]} 16. Re1 {[%clk 0:02:23.3]} 16... Bf6 {[%clk
0:02:42.9]} 17. b4 {[%clk 0:02:23.4]} 17... axb4 {[%clk 0:02:37.4]} 18. axb4
{[%clk 0:02:24.3]} 18... Rxa1 {[%clk 0:02:35.9]} 19. Bxa1 {[%clk 0:02:24.5]}
19... Re8 {[%clk 0:01:38.3]} 20. b5 {[%clk 0:02:23.7]} 20... Na5 {[%clk
0:01:35.9]} 21. Nd2 {[%clk 0:02:09.8]} 21... b6 {[%clk 0:01:26.4]} 22. h4 {[%clk
0:01:42.5]} 22... Bb7 {[%clk 0:01:04.3]} 23. Bxb7 {[%clk 0:01:42.3]} 23... Nxb7
{[%clk 0:01:05.2]} 24. Qf3 {[%clk 0:01:42.9]} 24... Nc5 {[%clk 0:01:01.7]} 25.
Qxf5 {[%clk 0:01:40.5]} 25... Qc8 {[%clk 0:00:53.2]} 26. Qf3 {[%clk 0:01:32.1]}
26... Qa8 {[%clk 0:00:52.7]} 27. Qe2 {[%clk 0:01:17.2]} 27... e4 {[%clk
0:00:30.6]} 28. Nxe4 {[%clk 0:01:11.6]} 28... Nxe4 {[%clk 0:00:30.5]} 29. dxe4
{[%clk 0:01:12.2]} 29... d3 {[%clk 0:00:29.7]} 30. Qd1 {[%clk 0:01:12.6]} 30...
Bxa1 {[%clk 0:00:12.8]} 31. Qxa1 {[%clk 0:01:13.5]} 31... Qxa1 {[%clk
0:00:13.1]} 32. Rxa1 {[%clk 0:01:14.3]} 32... Rxe4 {[%clk 0:00:13.8]} 33. Rd1
{[%clk 0:00:57.8]} 33... Rxc4 {[%clk 0:00:10.4]} 34. Rxd3 {[%clk 0:00:58.2]}
34... Rc5 {[%clk 0:00:07.8]} 35. Rb3 {[%clk 0:00:58.8]} 35... Kf7 {[%clk
0:00:07.6]} 36. Kg2 {[%clk 0:00:59.4]} 36... Kf6 {[%clk 0:00:07.9]} 37. Kf3
{[%clk 0:00:59.9]} 37... h5 {[%clk 0:00:07.4]} 38. Ke3 {[%clk 0:00:58.8]} 38...
g6 {[%clk 0:00:07.6]} 39. Kd4 {[%clk 0:00:58.7]} 39... Rc2 {[%clk 0:00:07.3]}
40. Rf3+ {[%clk 0:00:58.6]} 40... Ke6 {[%clk 0:00:07.7]} 41. Re3+ {[%clk
0:00:57.9]} 41... Kd6 {[%clk 0:00:05.2]} 42. f3 {[%clk 0:00:54.9]} 42... Rb2
{[%clk 0:00:04.9]} 43. Kc4 {[%clk 0:00:55.1]} 43... Rc2+ {[%clk 0:00:04.2]} 44.
Kb4 {[%clk 0:00:50.6]} 44... Rb2+ {[%clk 0:00:03.3]} 45. Rb3 {[%clk 0:00:50.8]}
45... Rg2 {[%clk 0:00:03.4]} 46. Rd3+ {[%clk 0:00:49.8]} 46... Ke6 {[%clk
0:00:03.4]} 47. Rc3 {[%clk 0:00:49.2]} 47... Rxg3 {[%clk 0:00:02.7]} 48. Rc6+
{[%clk 0:00:49.6]} 48... Kf5 {[%clk 0:00:03.2]} 49. Rxb6 {[%clk 0:00:50]} 49...
Rxf3 {[%clk 0:00:03.6]} 50. Rb8 {[%clk 0:00:50.4]} 50... Rf4+ {[%clk 0:00:03.8]}
51. Ka5 {[%clk 0:00:50.4]} 51... Rxh4 {[%clk 0:00:04.2]} 52. Rf8+ {[%clk
0:00:49.6]} 52... Kg5 {[%clk 0:00:03.7]} 53. b6 {[%clk 0:00:48.5]} 53... Rh1
{[%clk 0:00:04.2]} 54. b7 {[%clk 0:00:48.6]} 54... Ra1+ {[%clk 0:00:04.2]} 55.
Kb5 {[%clk 0:00:48.1]} 55... Rb1+ {[%clk 0:00:05.1]} 56. Kc6 {[%clk 0:00:48.6]}
56... h4 {[%clk 0:00:05.4]} 57. b8=Q {[%clk 0:00:48.5]} 57... Rxb8 {[%clk
0:00:06.3]} 58. Rxb8 {[%clk 0:00:49.1]} 58... Kg4 {[%clk 0:00:05.8]} 59. Kd5
{[%clk 0:00:48.9]} 59... h3 {[%clk 0:00:05.5]} 60. Ke4 {[%clk 0:00:48.6]} 60...
h2 {[%clk 0:00:02.7]} 61. Rb1 {[%clk 0:00:30.2]} 61... Kg3 {[%clk 0:00:03.2]}
62. Ke3 {[%clk 0:00:27.5]} 62... Kg2 {[%clk 0:00:02.8]} 63. Rb2+ {[%clk
0:00:28.1]} 63... Kg1 {[%clk 0:00:02.6]} 64. Rb1+ {[%clk 0:00:23.8]} 64... Kg2
{[%clk 0:00:03.2]} 65. Rb2+ {[%clk 0:00:23.9]} 65... Kg1 {[%clk 0:00:03.8]} 66.
Rb1+ {[%clk 0:00:09.3]} 66... Kg2 {[%clk 0:00:04.2]} 1/2-1/2